Cogmind - Beta 14 @@@ ROGUE MODE // 2024.11.20 @ 05:56:24 Player: WazdakkaGutsmek Result: Escaped! Performance ------------- Evolutions (9) 4500 Regions Visited (22) 4400 Robots Destroyed (312) 1560 Value Destroyed (18689) 18689 Prototype IDs (36) 720 Alien Tech Used (0) 0 Bonus (20595) 20595 TOTAL SCORE: 50464 Bonus ------- Triggered High Security 500 High Alert Combat Kills 5878 Follower Combat Kills 6157 Entered Garrisons 1600 Used RIF Installer 4000 Aligned with FarCom 300 Scanned by Researcher 500 Win 3000 Friendly Fire -1340 Cogmind --------- Core Integrity 1265/1600 Matter 258/300 Energy 228/260 System Corruption 16% Temperature Cool (-195) Movement Flying (108) Ox1 Location To Epsilon Eridani Parts ------- > --- POWER (2) -------- Light Antimatter Reactor Light Quantum Reactor > --- PROPULSION (6) --- Xenon Bombardment Thruster Xenon Bombardment Thruster Xenon Bombardment Thruster Impulse Thruster Field Propulsion Array > --- UTILITY (14) ----- Advanced Cryofiber Web Advanced Heat Sink Advanced Heat Sink Advanced Heat Sink Advanced Heat Sink Advanced Heat Sink Advanced Heat Sink Advanced Heat Sink Advanced Cooling System Advanced Weight Redist. System Advanced Reaction Control System > --- WEAPON (3) ------- Nova Cannon > --- INVENTORY (5) ---- Backup Power VII Cesium-ion Thruster Advanced Heat Sink Advanced Coolant Injector Peak State ------------ > --- POWER ------------ Particle Reactor Light Quantum Reactor > --- PROPULSION ------- Medium Treads Armored Medium Treads Armored Medium Treads Armored Medium Treads Advanced Heavy Siege Treads > --- UTILITY ---------- Advanced Heat Sink Advanced Heat Sink Advanced Cooling System Huge Storage Unit Advanced Target Analyzer Advanced Target Analyzer Advanced Target Analyzer Quantum Capacitor Advanced Reaction Control System Improved Medium Armor Plating Relay Coupler [Sentry] Relay Coupler [Specialist] Relay Coupler [Behemoth] > --- WEAPON ----------- Enhanced Nova Cannon Advanced Remote Datajack Advanced Remote Datajack > --- INVENTORY -------- Light Antimatter Reactor Armored Medium Treads Armored Medium Treads Compact Battery Matter Compressor Improved Heavy Armor Plating Relay Coupler [NC] Relay Coupler [Grunt] Relay Coupler [Grunt] Relay Coupler [Grunt] Relay Coupler [Demolisher] Relay Coupler [Hunter] Relay Coupler [Hunter] Relay Coupler [Heavy] Compact HERF Cannon Enhanced Nova Cannon Rocket Array Rocket Array Advanced Remote Datajack Field Lobotomy Kit [Rating: 171] Favorites ----------- Power Reinforced Antimatter Reactor Engine Light Angular Momentum Engine Power Core Reinforced Fission Core Reactor Reinforced Antimatter Reactor Propulsion Medium Treads Treads Medium Treads Leg Aluminum Leg Flight Unit Xenon Bombardment Thruster Utility Advanced Heat Sink Device Advanced Heat Sink Storage Huge Storage Unit Processor Advanced Target Analyzer Hackware Relay Coupler [Sentry] Protection Improved Medium Armor Plating Weapon Advanced Remote Datajack Energy Gun Gatling Laser Energy Cannon Heavy Phase Cannon Ballistic Gun Light Assault Rifle Ballistic Cannon Gauss Cannon Launcher Rocket Array Special Weapon Advanced Remote Datajack Impact Weapon Power Maul Build | -11 -10 -10 -10 -9 -8 -8 -8 -8 -7 -7 -7 -7 -6 -6 -5 -5 -4 -4 -3 -2 -2 -1 ------- Run | Yrd Mat Min Exi Min Mat Gar Mat Gar Fac Gar Fac Gar Fac Gar Fac Gar Fac Gar Res Res Gar Acc Slots Evolved 18 | . . . . . 4 . . . 2 . . . 2 . 2 . 2 . 2 2 . 2 Power 1 | . . . . . . . . . . . . . . . 1 . . . . . . . Propulsion 4 | . . . . . 2 . . . . . . . . . . . . . 2 . . . Utility 12 | . . . . . 2 . . . 2 . . . 2 . 1 . 2 . . 1 . 2 Weapon 1 | . . . . . . . . . . . . . . . . . . . . 1 . . Parts Attached 320 | . 1 1 1 9 13 3 9 12 16 15 17 10 7 23 8 1 . 9 23 35 17 90 Power 28 | . . . . 1 3 . 2 2 . . 2 . 1 1 2 . . . 3 4 2 5 Engine 7 | . . . . 1 2 . 2 . . . 1 . 1 . . . . . . . . . Core 4 | . . . . . 1 . . 2 . . 1 . . . . . . . . . . . Reactor 17 | . . . . . . . . . . . . . . 1 2 . . . 3 4 2 5 Propulsion 68 | . . . . 2 5 . . 5 3 2 5 2 1 2 . . . 3 6 10 2 20 Treads 58 | . . . . 2 5 . . 5 3 2 5 2 1 2 . . . 3 6 10 2 10 Leg . | . . . . . . . . . . . . . . . . . . . . . . . Wheel . | . . . . . . . . . . . . . . . . . . . . . . . Hover . | . . . . . . . . . . . . . . . . . . . . . . . Flight 10 | . . . . . . . . . . . . . . . . . . . . . . 10 Utility 122 | . 1 . . 4 3 . 3 3 6 5 3 5 3 9 4 1 . 4 11 14 9 34 Device 57 | . . . . 2 1 . . 1 3 3 . 2 1 3 3 . . . 7 9 3 19 Storage 7 | . . . . 1 . . 1 . 1 . . . . 1 . . . . . 1 1 1 Processor 7 | . . . . 1 . . . . . . . . 1 . . . . . 1 3 1 . Hackware 23 | . . . . . . . . . . . 1 . . 2 . 1 . 3 1 . 4 11 Protection 28 | . 1 . . . 2 . 2 2 2 2 2 3 1 3 1 . . 1 2 1 . 3 Artifact . | . . . . . . . . . . . . . . . . . . . . . . . Weapon 102 | . . 1 1 2 2 3 4 2 7 8 7 3 2 11 2 . . 2 3 7 4 31 Energy Gun 6 | . . . . . . . 1 . 1 . 2 . . 1 . . . . . . . 1 Energy Cannon 39 | . . . . . . 1 . . 5 1 3 1 1 3 1 . . 1 2 6 3 11 Ballistic Gun 5 | . . 1 1 . 2 . 1 . . . . . . . . . . . . . . . Ballistic Cannon 17 | . . . . 1 . 2 2 1 1 4 . 2 1 3 . . . . . . . . Launcher 16 | . . . . 1 . . . . . 3 1 . . . 1 . . . . . 1 9 Special Weapon 18 | . . . . . . . . . . . 1 . . 4 . . . 1 1 1 . 10 Impact Weapon 1 | . . . . . . . . 1 . . . . . . . . . . . . . . Slashing Weapon . | . . . . . . . . . . . . . . . . . . . . . . . Piercing Weapon . | . . . . . . . . . . . . . . . . . . . . . . . Special Melee Weapon . | . . . . . . . . . . . . . . . . . . . . . . . Unidentified Prototypes 13 | . . . . . 1 . 3 . 1 . 4 . 2 . . . . . . 1 . 1 Corrupted Parts 2 | . . . . . . . . . . . . . . . . . . . . . . 2 System Corruption 2 | . . . . . . . . . . . . . . . . . . . . . . 2 Parts Lost 74 | . . . . 4 . . 1 7 1 7 1 3 2 7 1 . . 4 10 13 2 11 Power 8 | . . . . 1 . . . 1 . . 1 . 1 . . . . . 2 2 . . Propulsion 25 | . . . . 2 . . . 1 . 2 . 2 . 4 . . . 2 2 5 1 4 Utility 30 | . . . . 1 . . . 4 . 5 . 1 . 3 1 . . . 6 6 . 3 Weapon 11 | . . . . . . . 1 1 1 . . . 1 . . . . 2 . . 1 4 Highest Loss Streak 4 | . . . . 2 . . 1 4 1 2 1 3 1 4 1 . . 4 4 4 1 4 To Critical Strikes 1 | . . . . . . . . . . . . . . . . . . 1 . . . . Average Slot Usage (%) 81 | . 92 100 100 91 85 100 96 84 89 83 79 75 75 72 70 76 68 81 79 68 81 80 Engine 2 | . 14 14 14 8 6 9 9 3 . . 1 . 2 2 . . . . . . . . Core 2 | . . . . . 2 . . 5 7 7 5 7 2 . . . . . . . . . Reactor 4 | . . . . . . . . . . . . . . 3 8 11 10 10 8 7 8 7 Treads 18 | . . . . 14 26 36 36 33 22 22 29 23 24 13 11 11 10 12 16 12 18 12 Leg 1 | . 28 28 28 13 . . . . . . . . . . . . . . . . . . Flight 1 | . . . . . . . . . . . . . . . . . . . . . . 7 Device 17 | . . . . 2 9 18 18 8 22 19 15 19 12 10 14 17 15 15 17 20 17 26 Storage 6 | . 14 14 14 14 9 9 9 9 7 7 7 7 6 5 5 5 5 5 4 4 4 2 Processor 2 | . . . . 5 . . . . . . . . 3 2 . . . . 3 5 12 7 Hackware 5 | . . . . . . . . . . . . . . 11 11 11 10 21 13 5 8 8 Protection 6 | . 7 14 14 5 14 9 5 7 13 11 7 7 12 11 4 5 5 5 3 . 1 2 Energy Cannon 3 | . . . . . . 3 3 . 12 9 2 2 . 3 4 5 5 5 3 4 3 2 Ballistic Gun 1 | . 14 21 28 18 8 2 2 2 . . . . . . . . . . . . . . Ballistic Cannon 2 | . . . . 1 9 12 12 13 2 3 2 5 5 1 . . . . . . . . Special Weapon 1 | . . . . . . . . . . . 2 . . 3 5 5 5 5 3 4 4 2 Peak Build Rating 171 | 6 7 7 8 15 40 41 40 44 67 65 63 67 61 102 115 107 107 118 146 163 163 171 Average Rating 86 | 6 6 6 7 10 27 40 38 32 62 54 58 58 58 80 107 106 107 104 124 145 152 136 On Entrance 63 | 6 6 7 7 8 15 40 40 38 44 65 55 63 55 50 102 107 107 107 105 129 161 151 Naked Turns . | . . . . . . . . . . . . . . . . . . . . . . . Heaviest Build 196 | 11 14 14 14 21 42 46 54 55 139 140 144 148 137 141 167 154 154 157 175 158 164 196 Greatest Support 235 | 20 20 20 20 40 88 88 88 110 118 126 112 112 96 120 120 120 120 120 215 235 209 189 Greatest Overweight (x) 35 | . . . . . . . . . 1 2 1 2 1 35 1 1 1 5 1 . 1 3 Average Overweight (x) . | . . . . . . . . . . 1 . 1 1 1 1 1 1 1 . . . . Largest Inventory Capacity 25 | 8 8 8 8 8 8 8 15 15 25 25 25 25 25 25 25 25 25 25 25 25 25 25 Average Capacity 20 | 8 8 8 8 8 8 8 12 15 15 25 25 25 25 24 25 25 25 25 25 25 25 17 Most Carried 25 | 6 6 6 7 8 8 8 10 14 16 24 25 25 22 24 25 23 23 23 25 25 25 25 Average Carried 17 | 6 6 6 6 6 6 7 8 9 14 17 23 21 20 20 24 22 23 19 22 21 21 14 Final Capacity 25 | 8 8 8 8 8 8 8 15 15 25 25 25 25 25 25 25 25 25 25 25 25 25 5 Final Carried 24 | 6 6 6 6 7 7 8 10 14 16 24 24 20 22 24 22 23 23 20 22 24 23 4 Class Distribution -------------------- 34% | Bothacker-Mutant 25% | Botlord-Mutant 19% | Mutant 6% | Scavenger-Sprinter 5% | Scavenger-Mutant 4% | Commander-Mutant Dominant Class ---------------- Mutant | -10/Materials Mutant | -10/Mines Mutant | -10/Exiles Mutant | -9/Mines Scavenger-Mutant | -8/Materials Commander-Mutant | -8/Garrison Commander-Mutant | -8/Materials Mutant | -8/Garrison Mutant | -7/Factory Mutant | -7/Garrison Bothacker-Mutant | -7/Factory Bothacker-Mutant | -7/Garrison Bothacker-Mutant | -6/Factory Bothacker-Mutant | -6/Garrison Bothacker-Mutant | -5/Factory Botlord-Mutant | -5/Garrison Botlord-Mutant | -4/Factory Botlord-Mutant | -4/Garrison Botlord-Mutant | -3/Research Bothacker-Mutant | -2/Research Botlord-Mutant | -2/Garrison Botlord-Mutant | -1/Access Resources | -11 -10 -10 -10 -9 -8 -8 -8 -8 -7 -7 -7 -7 -6 -6 -5 -5 -4 -4 -3 -2 -2 -1 ----------- Run | Yrd Mat Min Exi Min Mat Gar Mat Gar Fac Gar Fac Gar Fac Gar Fac Gar Fac Gar Res Res Gar Acc Matter Collected 8146 | 200 . 41 . 242 546 59 438 481 278 570 302 807 237 635 235 10 . 140 242 454 563 1666 Remotely . | . . . . . . . . . . . . . . . . . . . . . . . Salvage Created 15134 | . . 141 . 114 680 61 666 464 1074 967 133 563 307 491 858 119 . 453 2029 2481 815 2718 Parts 635 | . . 11 . . 37 . 35 28 51 64 9 26 9 15 32 7 . 12 74 92 24 109 Haulers Intercepted 4 | . . . . . 1 . 2 . . . . . . . 1 . . . . . . . Recyclers Shooed 2 | . . . . . 1 . . . . . . . . . . . . . . 1 . . Parts Field Recycled . | . . . . . . . . . . . . . . . . . . . . . . . Retrieved Matter . | . . . . . . . . . . . . . . . . . . . . . . . Parts Self-Destructed . | . . . . . . . . . . . . . . . . . . . . . . . Prevented . | . . . . . . . . . . . . . . . . . . . . . . . Kills | -11 -10 -10 -10 -9 -8 -8 -8 -8 -7 -7 -7 -7 -6 -6 -5 -5 -4 -4 -3 -2 -2 -1 ------- Run | Yrd Mat Min Exi Min Mat Gar Mat Gar Fac Gar Fac Gar Fac Gar Fac Gar Fac Gar Res Res Gar Acc Combat Hostiles Destroyed 286 | . . 6 . 9 12 . 14 15 19 32 2 20 6 5 18 2 . 8 28 31 14 45 Guns 27 | . . 6 . 8 5 . 2 4 . . . . . . . . . . . . . 2 Cannons 193 | . . . . . 7 . 12 11 17 20 2 19 6 4 12 . . 7 25 22 11 18 AOE 40 | . . . . 1 . . . . 1 12 . . . . 4 . . . . . . 22 Classes Destroyed 22 | . . 2 . 1 6 . 2 . 2 1 1 . . . 3 . . . 1 . . 3 Worker 5 | . . . . . 1 . 1 . . . . . . . . . . . . 1 . 2 Builder 8 | . . . . . 1 . . . 1 . . . . . 2 . . . . 1 . 3 Hauler 4 | . . . . . 1 . 2 . . . . . . . 1 . . . . . . . Recycler 7 | . . . . . 2 . . . . . . . . . . . . . 2 . . 3 Mechanic 2 | . . . . . . . . . 1 . . . . . . . . . . . . 1 Operator 2 | . . . . . . . . . . . 1 . . . . . . . 1 . . . Watcher 4 | . . . . . . . . . . . . . . . 1 . . . 2 . . 1 Swarmer 61 | . . 4 . . 3 . 1 3 . 13 . 10 . 1 2 . . 3 11 3 7 . Saboteur 4 | . . . . . . . . . . . . . . . 1 . . . . . . 3 Grunt 105 | . . 2 . . 6 . 4 9 12 10 . 6 1 1 10 . . 5 5 15 2 17 Brawler 12 | . . . . . . . 1 1 3 . . . 2 . 1 . . . . . 1 3 Duelist 8 | . . . . . . . . . 2 1 . . 2 . . . . . . 1 . 2 Protector 2 | . . . . . . . . . . . . . . . 1 . . . . . . 1 Sentry 23 | . . . . . 2 . 5 2 1 1 1 2 1 1 . . . . 3 1 3 . Demolisher 1 | . . . . . . . . . . . . . . . . . . . . . . 1 Specialist 3 | . . . . . . . . . . 1 . . . . . . . . . . . 2 Hunter 26 | . . . . . 1 . 2 . . 3 1 2 . 1 3 2 . . 4 6 . 1 Programmer 31 | . . . . . . . 1 . 1 3 . . . 1 . . . . 6 5 1 13 Behemoth 1 | . . . . . . . . . . . . . . . . . . . 1 . . . Striker 1 | . . . . . . . . . . . . . . . . . . . . . . 1 Executioner 1 | . . . . . . . . . . . . . . . . . . . . . . 1 Assembled 9 | . . . . 9 . . . . . . . . . . . . . . . . . . Thug 1 | . . . . . . . . . . . . . 1 . . . . . . . . . Best Kill Streak 18 | . . 3 . 4 8 . 5 4 6 10 1 4 3 1 9 2 . 2 7 9 5 18 Combat Bots Only 15 | . . 3 . 4 4 . 4 4 4 10 1 4 3 1 4 2 . 2 6 5 5 15 Max Kills in Single Turn 5 | . . 1 . 1 1 . 3 2 2 3 1 2 1 1 3 1 . 1 1 1 1 5 Gunslinging . | . . . . . . . . . . . . . . . . . . . . . . . Exploded 4 | . . . . 1 . . . . 1 3 . . . . 3 . . . . . . 4 Melee . | . . . . . . . . . . . . . . . . . . . . . . . Uniques/NPCs Destroyed . | . . . . . . . . . . . . . . . . . . . . . . . Combat | -11 -10 -10 -10 -9 -8 -8 -8 -8 -7 -7 -7 -7 -6 -6 -5 -5 -4 -4 -3 -2 -2 -1 -------- Run | Yrd Mat Min Exi Min Mat Gar Mat Gar Fac Gar Fac Gar Fac Gar Fac Gar Fac Gar Res Res Gar Acc Hostile Shots Fired 2014 | . . 24 . 57 51 . 40 84 133 172 9 161 82 81 78 6 . 69 239 298 85 345 Missed 555 | . . 6 . 17 11 . 13 17 30 43 7 47 36 21 15 2 . 21 71 53 14 131 Damage Taken 28058 | . 27 198 . 630 528 . 333 978 1544 1799 16 1462 850 1310 965 47 . 923 3297 5525 1671 5955 Core 2514 | . 9 21 . 118 37 . 9 127 187 221 . 34 143 338 65 18 . 138 295 326 93 335 Absorbed by Shields 1068 | . . . . . . . 48 72 . 23 . 109 . . . . . 25 321 . 69 401 Reduced by Siege Mode 1328 | . . . . . . . . . . . . . . . 24 . . . 42 1150 99 13 Redirected to Shielding 107 | . . . . . . . . . . . . . . . . . . 60 47 . . . Ignored by Resistances 219 | . . . . . . . . . 24 . . . . 15 180 . . . . . . . Regen/Repaired (Parts) 41 | . . . . . . . . . . . . . . . . . . . . . . 41 Core Remaining (%) 69 | 100 . . . 40 . . . 68 . . . 36 . 43 . 91 . 88 77 . 71 79 Volleys Fired 1347 | . . 16 . 39 44 10 33 42 57 67 15 58 20 70 78 6 . 68 200 153 144 227 Largest 3 | . . 2 . 2 2 2 2 2 2 2 2 2 1 1 1 1 . 1 1 1 1 3 Hottest 210 | . . 70 . 50 80 96 117 96 171 180 170 180 75 113 113 113 . 113 105 120 120 210 Shots Fired 1652 | . . 32 . 57 88 13 66 81 113 128 18 74 20 70 78 6 . 68 200 154 145 241 Gun 213 | . . 32 . 54 44 1 18 15 . . 2 . . 17 . . . . . . . 30 Cannon 1269 | . . . . . 44 12 48 66 113 115 7 74 20 37 70 6 . 56 191 142 112 156 Launcher 34 | . . . . 3 . . . . . 13 . . . . 3 . . . . . . 15 Special 136 | . . . . . . . . . . . 9 . . 16 5 . . 12 9 12 33 40 Kinetic 438 | . . 21 . 54 88 7 61 81 13 28 2 52 20 11 . . . . . . . . Thermal 965 | . . 11 . . . . . . 88 87 7 22 . 43 70 6 . 56 191 118 111 155 Explosive 34 | . . . . 3 . . . . . 13 . . . . 3 . . . . . . 15 Electromagnetic 79 | . . . . . . 6 5 . 12 . . . . . . . . . . 24 1 31 Robot Hit Streak 22 | . . 5 . 5 8 3 7 5 13 7 8 13 6 22 13 4 . 14 21 19 18 16 Robot Miss Streak 8 | . . 5 . 2 8 1 5 3 4 5 3 3 2 2 2 1 . 4 5 2 5 7 Penetration Max 1 | . . . . . 1 . 1 1 . . . 1 . . . . . . . . . . Secondary Targets . | . . . . . . . . . . . . . . . . . . . . . . . Capacitor 746 | . . . . . . . . . . . . . . 21 70 6 . 56 191 140 112 150 Shots Hit Robots 1071 | . . 15 . 32 49 4 39 45 72 66 9 47 13 59 59 4 . 47 157 117 99 138 Core Hits 622 | . . 9 . 17 28 1 22 24 30 43 4 17 9 12 58 3 . 13 46 43 21 222 Critical Kills 24 | . . . . . 5 . . . 1 . . . . 1 1 2 . 1 4 6 2 1 Critical Parts Destroyed 11 | . . . . . 10 . . 1 . . . . . . . . . . . . . . Critical Strikes 65 | . . . . . 16 1 4 6 1 2 1 5 1 2 1 2 . 1 4 7 2 9 Burn 2 | . . . . . . . . . . . . . . . . . . . . . . 2 Meltdown 19 | . . . . . . . . . 1 . . . . 1 1 2 . 1 4 6 2 1 Destroy 17 | . . . . . 16 . . 1 . . . . . . . . . . . . . . Blast 20 | . . . . . . 1 4 5 . 2 1 5 1 1 . . . . . . . . Corrupt 7 | . . . . . . . . . . . . . . . . . . . . 1 . 6 Melee Attacks . | . . . . . . . . . . . . . . . . . . . . . . . Impact . | . . . . . . . . . . . . . . . . . . . . . . . Slashing . | . . . . . . . . . . . . . . . . . . . . . . . Piercing . | . . . . . . . . . . . . . . . . . . . . . . . Sneak Attacks . | . . . . . . . . . . . . . . . . . . . . . . . Combat Hostiles . | . . . . . . . . . . . . . . . . . . . . . . . Follow-up Attacks . | . . . . . . . . . . . . . . . . . . . . . . . Damage Inflicted 44257 | . . 146 . 461 1001 128 1312 1261 2357 3033 170 3176 1376 1650 3205 156 . 1364 5731 4736 3199 9795 Guns 2411 | . . 146 . 357 438 . 403 260 . . 58 . . 334 . . . . . . . 415 Cannons 33475 | . . . . . 563 128 900 1001 2289 1907 112 3176 983 1316 2263 156 . 1364 5696 4736 3199 3686 Explosions 8311 | . . . . 102 . . . . 54 1126 . . 393 . 942 . . . . . . 5694 Melee . | . . . . . . . . . . . . . . . . . . . . . . . Ramming 60 | . . . . 2 . . 9 . 14 . . . . . . . . . 35 . . . Kinetic 8705 | . . 82 . 357 1001 128 1219 1261 197 314 78 2662 983 423 . . . . . . . . Thermal 25412 | . . 64 . . . . . . 2007 1593 92 514 . 1227 2263 156 . 1364 5696 3883 3199 3354 Explosive 8147 | . . . . 102 . . . . . 1126 . . 393 . 942 . . . . . . 5584 Electromagnetic 1933 | . . . . . . . 84 . 139 . . . . . . . . . . 853 . 857 Impact . | . . . . . . . . . . . . . . . . . . . . . . . Slashing . | . . . . . . . . . . . . . . . . . . . . . . . Piercing . | . . . . . . . . . . . . . . . . . . . . . . . Highest Corruption 16 | . . . . . . . 1 1 2 3 3 4 . 1 . . . . . 4 5 16 Average Corruption 4 | . . . . . . . 1 1 1 2 3 3 . 1 . . . . . 3 4 10 Corruption Purged . | . . . . . . . . . . . . . . . . . . . . . . . Corruption Blocked 20 | . . . . . . . . . . . . . . . . . . . 15 5 . . Effects 299 | . . . . . . . . 3 9 29 20 45 . 10 . . . . . 12 40 131 Message Errors 83 | . . . . . . . . . 2 8 7 15 . 3 . . . . . 4 8 36 Matter Fused 59 | . . . . . . . . 1 1 6 3 7 . 4 . . . . . 1 10 26 Heat Flow Errors 37 | . . . . . . . . 1 1 2 2 8 . . . . . . . 3 5 15 Energy Discharges 37 | . . . . . . . . . . 3 4 4 . 1 . . . . . 1 7 17 Parts Rejected 4 | . . . . . . . . . . . . 1 . . . . . . . . 1 2 Parts Fused 2 | . . . . . . . . . . . . . . 1 . . . . . . 1 . Data Loss (minor) 26 | . . . . . . . . . 1 4 1 4 . . . . . . . 2 3 11 Data Loss (major) 19 | . . . . . . . . . 1 1 . . . 1 . . . . . . 3 13 Misfires 15 | . . . . . . . . . 1 3 1 6 . . . . . . . 1 1 2 Alerts 10 | . . . . . . . . . 1 1 2 . . . . . . . . . 1 5 Misdirections 3 | . . . . . . . . . . . . . . . . . . . . . . 3 Weapon Failures 4 | . . . . . . . . 1 1 1 . . . . . . . . . . . 1 Overload Shots . | . . . . . . . . . . . . . . . . . . . . . . . Overflow Damage 1244 | . . . . 2 20 . . 6 37 57 . 210 84 74 80 . . 4 218 183 95 174 Projectiles 1219 | . . . . . 20 . . 6 37 57 . 210 84 74 80 . . 4 218 183 95 151 Explosions 25 | . . . . 2 . . . . . . . . . . . . . . . . . 23 Melee . | . . . . . . . . . . . . . . . . . . . . . . . Knockbacks 51 | . . . . . 10 1 5 9 3 4 . 9 3 5 . . . . 2 . . . Impact 1 | . . . . . . . . . . . . . . . . . . . 1 . . . Kinetic 45 | . . . . . 10 1 5 9 3 2 . 7 3 5 . . . . . . . . Secondary 5 | . . . . . . . . . . 2 . 2 . . . . . . 1 . . . Self-Inflicted Damage 286 | . . . . 31 . . . . . 75 . . 109 . . . . . . . . 71 Shots 7 | . . . . 1 . . . . . 2 . . 1 . . . . . . . . 3 Rammed 5 | . . . . 2 . . 1 . 1 . . . . . . . . . 1 . . . Targets Rammed 5 | . . . . 2 . . 1 . 1 . . . . . . . . . 1 . . . Kicked . | . . . . . . . . . . . . . . . . . . . . . . . Crushed . | . . . . . . . . . . . . . . . . . . . . . . . Highest Temperature 486 | . . 272 . 12 336 144 217 343 199 388 210 486 108 325 389 195 . 315 257 199 330 256 Average Temperature 99 | . . 98 . 5 103 65 82 117 123 129 57 87 43 78 144 101 . 121 93 96 116 85 Received Heat Transfer 4941 | . . 69 . 46 108 . 84 591 780 345 6 218 78 664 288 . . 210 149 774 183 348 Effects 17 | . . . . . 1 . . . . 7 . 1 . 3 1 . . . 1 . . 3 Shutdowns 4 | . . . . . . . . . . 3 . 1 . . . . . . . . . . Energy Bleed 2 | . . . . . 1 . . . . . . . . . . . . . 1 . . . Interference 8 | . . . . . . . . . . 2 . . . 3 . . . . . . . 3 Matter Decay 2 | . . . . . . . . . . 1 . . . . 1 . . . . . . . Damage (minor) 1 | . . . . . . . . . . 1 . . . . . . . . . . . . Siege Activations 17 | . . . . . . . . . . . . . . . 1 . . . 4 8 2 2 Total Turns 279 | . . . . . . . . . . . . . . . 21 . . . 49 151 47 11 Longest Duration 58 | . . . . . . . . . . . . . . . 21 . . . 23 58 29 8 Robots Corrupted 7 | . . . . . . . . . . . . 1 . . . . . . . 3 . 3 Combat Hostiles 7 | . . . . . . . . . . . . 1 . . . . . . . 3 . 3 Parts Fried 9 | . . . . . . . . . . . . . . . . . . . . 7 . 2 Impact Corruptions 2 | . . . . . . . . . . . . 2 . . . . . . . . . . Robots Melted 24 | . . . . . . . . . 1 . . . . 1 2 2 . 1 5 6 3 3 Combat Hostiles 19 | . . . . . . . . . 1 . . . . 1 2 2 . 1 3 6 3 . Parts Melted 69 | . . . . . . . . . 7 6 1 . . 2 1 3 . 6 9 17 7 10 Heat Transferred 24372 | . . 185 . . . . . . 2530 1791 162 555 . 1369 2109 110 . 1022 5588 3219 2662 3070 Parts Sabotaged 1 | . . . . . . . . . . . . . . . . . . . . . . 1 Parts Stolen . | . . . . . . . . . . . . . . . . . . . . . . . Parts Stripped . | . . . . . . . . . . . . . . . . . . . . . . . Power Chain Reactions 1 | . . . . . . . . . 1 . . . . . . . . . . . . . Alert | -11 -10 -10 -10 -9 -8 -8 -8 -8 -7 -7 -7 -7 -6 -6 -5 -5 -4 -4 -3 -2 -2 -1 ------- Run | Yrd Mat Min Exi Min Mat Gar Mat Gar Fac Gar Fac Gar Fac Gar Fac Gar Fac Gar Res Res Gar Acc Peak Influence 4599 | . 15 101 . 15 306 1076 865 866 800 1491 842 1025 884 893 905 648 340 374 593 700 1531 4599 Initial 918 | . . 5 . . 1 154 524 471 454 455 782 27 537 513 468 531 340 238 210 309 507 918 Average 923 | . 10 59 . 6 160 492 645 782 622 959 248 518 574 627 622 587 340 285 302 428 1085 2700 Maximum Alert Level 5 | . . . . . 1 3 3 3 3 4 3 3 3 3 3 2 1 1 2 3 4 5 Low Security (%) 12 | 100 100 100 . 100 57 3 . . . . 69 18 . . . . . . 4 . . . Level 1 16 | . . . . . 42 48 . . . . . 7 . . . . 100 100 78 45 . . Level 2 29 | . . . . . . 22 74 26 74 18 6 50 83 76 67 100 . . 16 53 9 . Level 3 23 | . . . . . . 25 25 73 25 52 24 23 16 23 32 . . . . . 36 32 Level 4 7 | . . . . . . . . . . 28 . . . . . . . . . . 53 12 Level 5 . | . . . . . . . . . . . . . . . . . . . . . . 2 High Security 9 | . . . . . . . . . . . . . . . . . . . . . . 51 Max Security . | . . . . . . . . . . . . . . . . . . . . . . . Sterilizations 1 | . . . . . . . . . . . . . . . . . . . . . . 1 Squads Dispatched 68 | . 1 . . 2 2 . 4 . 3 . 2 . 3 . 6 . . . 5 10 . 30 Investigation 6 | . . . . 2 1 . 1 . 1 . . . . . . . . . 1 . . . Extermination 9 | . . . . . . . . . . . 1 . 1 . . . . . 2 2 . 3 Reinforcement 15 | . 1 . . . 1 . 1 . . . 1 . . . 2 . . . 2 3 . 4 Assault 25 | . . . . . . . . . 2 . . . . . 4 . . . . 2 . 17 Garrison 13 | . . . . . . . 2 . . . . . 2 . . . . . . 3 . 6 Intercept . | . . . . . . . . . . . . . . . . . . . . . . . Searches Triggered . | . . . . . . . . . . . . . . . . . . . . . . . Construction Impeded 4 | . . . . . 1 . . . . . . . . . . . . . . 1 . 2 Haulers Reinforced 1 | . . . . . . . . . . . . . . . 1 . . . . . . . Active Scanning Responses . | . . . . . . . . . . . . . . . . . . . . . . . Cargo Convoy Interrupts 1 | . . . . . . . . . . . . . . . . . . . 1 . . . Alert ID Control Effect 64 | . . . . . . . . . . . . . . 1 . . . 2 1 . 16 44 Stealth | -11 -10 -10 -10 -9 -8 -8 -8 -8 -7 -7 -7 -7 -6 -6 -5 -5 -4 -4 -3 -2 -2 -1 --------- Run | Yrd Mat Min Exi Min Mat Gar Mat Gar Fac Gar Fac Gar Fac Gar Fac Gar Fac Gar Res Res Gar Acc Distress Signals 33 | . . . . . 5 . 3 . . . . . 1 . 3 . . . 8 2 . 11 Communications Jammed . | . . . . . . . . . . . . . . . . . . . . . . . Distress Signals . | . . . . . . . . . . . . . . . . . . . . . . . Times Spotted 580 | . 1 6 . 11 20 . 24 20 25 34 2 27 13 14 34 2 . 18 60 48 36 185 Peak Tracking Total 20 | . 1 2 . 3 6 . 5 8 5 10 1 5 5 5 6 2 . 6 14 7 8 20 Tactical Retreats 32 | . . . . 1 1 . 1 3 3 2 . 1 . 1 . . . 1 5 2 1 10 Traps | -11 -10 -10 -10 -9 -8 -8 -8 -8 -7 -7 -7 -7 -6 -6 -5 -5 -4 -4 -3 -2 -2 -1 ------- Run | Yrd Mat Min Exi Min Mat Gar Mat Gar Fac Gar Fac Gar Fac Gar Fac Gar Fac Gar Res Res Gar Acc Traps Triggered 25 | . 1 . . . 1 2 1 1 2 4 . 3 1 . 2 . . . 2 1 2 2 Indirectly . | . . . . . . . . . . . . . . . . . . . . . . . Trap Hack Attempts . | . . . . . . . . . . . . . . . . . . . . . . . Triggered . | . . . . . . . . . . . . . . . . . . . . . . . Disarmed . | . . . . . . . . . . . . . . . . . . . . . . . Reprogrammed . | . . . . . . . . . . . . . . . . . . . . . . . Reused . | . . . . . . . . . . . . . . . . . . . . . . . Traps Extracted . | . . . . . . . . . . . . . . . . . . . . . . . Installed . | . . . . . . . . . . . . . . . . . . . . . . . Triggered . | . . . . . . . . . . . . . . . . . . . . . . . Machines | -11 -10 -10 -10 -9 -8 -8 -8 -8 -7 -7 -7 -7 -6 -6 -5 -5 -4 -4 -3 -2 -2 -1 ---------- Run | Yrd Mat Min Exi Min Mat Gar Mat Gar Fac Gar Fac Gar Fac Gar Fac Gar Fac Gar Res Res Gar Acc Machines Disabled 52 | . . . . . 1 6 1 . . 4 1 1 9 1 4 1 . 1 1 2 8 11 Max in Single Turn 4 | . . . . . 1 1 1 . . 1 1 1 1 1 4 1 . 1 1 1 1 1 Garrison Access 4 | . . . . . . . . . 1 . . . . . . . . . . . . 3 Garrison Relay 14 | . . . . . . 5 . . . 1 . . . 1 . 1 . 1 . . 5 . Machines Repaired . | . . . . . . . . . . . . . . . . . . . . . . . Machines Dismantled . | . . . . . . . . . . . . . . . . . . . . . . . Machines Sabotaged . | . . . . . . . . . . . . . . . . . . . . . . . Overloaded Fab Kills . | . . . . . . . . . . . . . . . . . . . . . . . Hacking | -11 -10 -10 -10 -9 -8 -8 -8 -8 -7 -7 -7 -7 -6 -6 -5 -5 -4 -4 -3 -2 -2 -1 --------- Run | Yrd Mat Min Exi Min Mat Gar Mat Gar Fac Gar Fac Gar Fac Gar Fac Gar Fac Gar Res Res Gar Acc Machines Accessed 44 | . . . 1 2 2 3 2 1 3 3 5 2 2 2 2 . 1 2 2 2 2 5 Terminals 28 | . . . . 1 1 3 1 1 1 3 3 2 . 2 1 . . 2 2 . 2 3 Fabricators 3 | . . . . . . . . . . . 1 . 1 . . . . . . 1 . . Repair Stations . | . . . . . . . . . . . . . . . . . . . . . . . Recycling Units . | . . . . . . . . . . . . . . . . . . . . . . . Scanalyzers . | . . . . . . . . . . . . . . . . . . . . . . . Garrison Access 11 | . . . . . 1 . 1 . 2 . 1 . 1 . 1 . 1 . . 1 . 2 Total Hacks 68 | . . . 1 6 2 6 6 3 4 5 8 3 3 3 2 . 1 2 2 2 4 5 Successful 29 | . . . 1 2 1 . 4 1 2 1 5 1 1 2 1 . 1 2 . 2 . 2 Failed 38 | . . . . 3 1 6 2 2 2 4 3 2 2 1 1 . . . 2 . 4 3 Catastrophic 16 | . . . . 1 . 3 1 . 1 2 1 . . . 1 . . . 1 . 2 3 Database Lockouts 1 | . . . . 1 . . . . . . . . . . . . . . . . . . Manual 12 | . . . 1 6 1 . 1 . 3 . . . . . . . . . . . . . Terminals 49 | . . . . 5 1 6 4 3 1 5 6 3 . 3 1 . . 2 2 . 4 3 Fabricators 4 | . . . . . . . . . . . 1 . 2 . . . . . . 1 . . Repair Stations . | . . . . . . . . . . . . . . . . . . . . . . . Recycling Units . | . . . . . . . . . . . . . . . . . . . . . . . Scanalyzers . | . . . . . . . . . . . . . . . . . . . . . . . Garrison Access 13 | . . . . . 1 . 2 . 3 . 1 . 1 . 1 . 1 . . 1 . 2 Terminal Hacks 15 | . . . 1 2 . . 2 1 . 1 3 1 . 2 . . . 2 . . . . Robot Analysis 1 | . . . . 1 . . . . . . . . . . . . . . . . . . Open Door 1 | . . . . 1 . . . . . . . . . . . . . . . . . . Emergency Access Points 3 | . . . . . . . . . . . . 1 . 1 . . . 1 . . . . Unreport Threat 4 | . . . . . . . 2 . . . 2 . . . . . . . . . . . Locate Traps 1 | . . . . . . . . . . . 1 . . . . . . . . . . . Garrison Registry 3 | . . . . . . . . 1 . 1 . . . . . . . 1 . . . . Security Stations 1 | . . . . . . . . . . . . . . 1 . . . . . . . . Derelict Proto ID Bank 1 | . . . 1 . . . . . . . . . . . . . . . . . . . Fabricator Hacks 2 | . . . . . . . . . . . 1 . . . . . . . . 1 . . Network Status 1 | . . . . . . . . . . . . . . . . . . . . 1 . . Build 1 | . . . . . . . . . . . 1 . . . . . . . . . . . Repair Station Hacks . | . . . . . . . . . . . . . . . . . . . . . . . Recycling Unit Hacks . | . . . . . . . . . . . . . . . . . . . . . . . Scanalyzer . | . . . . . . . . . . . . . . . . . . . . . . . Garrison Access Hacks 10 | . . . . . 1 . 1 . 1 . 1 . 1 . 1 . 1 . . 1 . 2 Unlock Access 8 | . . . . . 1 . 1 . 1 . 1 . 1 . 1 . 1 . . 1 . . Seal Access 2 | . . . . . . . . . . . . . . . . . . . . . . 2 Unauthorized Hacks 2 | . . . . . . . 1 . 1 . . . . . . . . . . . . . Terminals . | . . . . . . . . . . . . . . . . . . . . . . . Fabricators . | . . . . . . . . . . . . . . . . . . . . . . . Repair Stations . | . . . . . . . . . . . . . . . . . . . . . . . Recycling Units . | . . . . . . . . . . . . . . . . . . . . . . . Scanalyzers . | . . . . . . . . . . . . . . . . . . . . . . . Garrison Access 2 | . . . . . . . 1 . 1 . . . . . . . . . . . . . Restock 2 | . . . . . . . 1 . 1 . . . . . . . . . . . . . Data Cores Recovered . | . . . . . . . . . . . . . . . . . . . . . . . Used . | . . . . . . . . . . . . . . . . . . . . . . . Hacking Detections 33 | . . . . 1 2 3 1 1 2 3 3 1 1 2 2 . . 2 2 2 2 3 Full Trace Events 7 | . . . . 1 . 3 . 1 . . . 1 . . . . . . . . 1 . Feedback Events . | . . . . . . . . . . . . . . . . . . . . . . . Feedback Blocked . | . . . . . . . . . . . . . . . . . . . . . . . Robot Schematics Acquired . | . . . . . . . . . . . . . . . . . . . . . . . Robots Built 2 | . . . . . . . . . . . 2 . . . . . . . . . . . Authchips . | . . . . . . . . . . . . . . . . . . . . . . . Time 81 | . . . . . . . . . . . 81 . . . . . . . . . . . Total Robot Build Rating 2 | . . . . . . . . . . . 2 . . . . . . . . . . . Part Schematics Acquired . | . . . . . . . . . . . . . . . . . . . . . . . Parts Built . | . . . . . . . . . . . . . . . . . . . . . . . Authchips . | . . . . . . . . . . . . . . . . . . . . . . . Time . | . . . . . . . . . . . . . . . . . . . . . . . Total Part Build Rating . | . . . . . . . . . . . . . . . . . . . . . . . Parts Repaired . | . . . . . . . . . . . . . . . . . . . . . . . Time . | . . . . . . . . . . . . . . . . . . . . . . . Parts Recycled . | . . . . . . . . . . . . . . . . . . . . . . . Recycled Matter . | . . . . . . . . . . . . . . . . . . . . . . . Retrieved Matter . | . . . . . . . . . . . . . . . . . . . . . . . Retrieved Components . | . . . . . . . . . . . . . . . . . . . . . . . Parts Scanalyzed . | . . . . . . . . . . . . . . . . . . . . . . . Part Schematics Acquired . | . . . . . . . . . . . . . . . . . . . . . . . Parts Damaged . | . . . . . . . . . . . . . . . . . . . . . . . Bothacking | -11 -10 -10 -10 -9 -8 -8 -8 -8 -7 -7 -7 -7 -6 -6 -5 -5 -4 -4 -3 -2 -2 -1 ------------ Run | Yrd Mat Min Exi Min Mat Gar Mat Gar Fac Gar Fac Gar Fac Gar Fac Gar Fac Gar Res Res Gar Acc Used RIF Installer 8 | . . . . . . 1 . 1 . 1 . 1 . 1 . 1 . 1 . . 1 . Zone Cloak 2 | . . . . . . . . . . 1 . . . . . 1 . . . . . . Patrol Navigation 1 | . . . . . . . . . . . . . . 1 . . . . . . . . Alert ID Control 1 | . . . . . . . . . . . . 1 . . . . . . . . . . Structural Interface 1 | . . . . . . . . 1 . . . . . . . . . . . . . . Program Shield 1 | . . . . . . . . . . . . . . . . . . 1 . . . . Autooverride 1 | . . . . . . . . . . . . . . . . . . . . . 1 . Robots Hacked 51 | . . . . . . . . . . . 1 . . 2 3 . . 8 4 2 6 25 Non-combat 3 | . . . . . . . . . . . 1 . . . . . . . . . . 2 Combat 48 | . . . . . . . . . . . . . . 2 3 . . 8 4 2 6 23 Autooverrided 10 | . . . . . . . . . . . . . . . . . . . . . . 10 Robot Hacks Applied 50 | . . . . . . . . . . . 4 . . 2 3 . . 9 5 3 6 18 parse_system 1 | . . . . . . . . . . . . . . . . . . 1 . . . . purge_threat 3 | . . . . . . . . . . . 3 . . . . . . . . . . . reprogram_traps 1 | . . . . . . . . . . . 1 . . . . . . . . . . . find_garrison 3 | . . . . . . . . . . . . . . . 1 . . . 1 1 . . scatter_targeting 1 | . . . . . . . . . . . . . . . . . . . . . . 1 disrupt_area 1 | . . . . . . . . . . . . . . . . . . 1 . . . . spike_heat 1 | . . . . . . . . . . . . . . . . . . . . . . 1 amplify_resonance 7 | . . . . . . . . . . . . . . 1 1 . . . . 1 . 4 disable_weapons 2 | . . . . . . . . . . . . . . . . . . . . 1 1 . overwrite_iff 12 | . . . . . . . . . . . . . . . 1 . . 6 3 . 1 1 formatsys_low 2 | . . . . . . . . . . . . . . . . . . . . . . 2 formatsys_high 16 | . . . . . . . . . . . . . . 1 . . . 1 1 . 4 9 Relay Couplers Released 68 | . . . . . . 20 3 . 5 5 . . . 3 . 5 . 5 . . 17 5 Machine Destruction 57 | . . . . . . 20 . . 1 5 . . . 3 . 5 . 5 . . 17 1 Programmers 11 | . . . . . . . 3 . 4 . . . . . . . . . . . . 4 Attached 21 | . . . . . . . . . . . 1 . . 2 . 1 . 3 1 . 4 9 Fabnet Peak Effective % . | . . . . . . . . . . . . . . . . . . . . . . . Robots Rewired 16 | . . . . . . 6 . . . . . . . 2 . . . . . 1 7 . Allies Hacked . | . . . . . . . . . . . . . . . . . . . . . . . Hacks Repelled . | . . . . . . . . . . . . . . . . . . . . . . . Allies | -11 -10 -10 -10 -9 -8 -8 -8 -8 -7 -7 -7 -7 -6 -6 -5 -5 -4 -4 -3 -2 -2 -1 -------- Run | Yrd Mat Min Exi Min Mat Gar Mat Gar Fac Gar Fac Gar Fac Gar Fac Gar Fac Gar Res Res Gar Acc Total Allies 76 | . . 3 . . . 8 . . . . 2 2 3 3 1 . . 7 4 1 16 26 Largest Group 12 | . . 3 3 3 . 8 8 . . . 2 2 4 1 2 . . 1 1 1 12 12 Highest-Rated Group 1044 | . . 40 40 40 . 139 139 . . . 20 175 188 148 195 . . 116 64 58 712 1044 Highest-Rated Ally 219 | . . 16 16 16 . 31 31 . . . 10 95 95 148 148 . . 116 64 58 148 219 Total Orders 5 | . . . . . . . . . . . . . . 2 . . . . . . . 3 ROAM 1 | . . . . . . . . . . . . . . 1 . . . . . . . . FOLLOW 1 | . . . . . . . . . . . . . . 1 . . . . . . . . AID 1 | . . . . . . . . . . . . . . . . . . . . . . 1 EXPLORE 2 | . . . . . . . . . . . . . . . . . . . . . . 2 Ally Attacks 636 | . . 3 . 18 . 3 48 . . . . 9 15 36 19 . . 15 13 7 76 374 Total Damage 28509 | . . 18 . 177 . 42 713 . . . . 531 1654 1129 512 . . 520 429 219 2420 20145 Kills 175 | . . . . 2 . . 9 . . . . 2 12 6 5 . . 2 1 1 18 117 Allies Corrupted 6 | . . . . 1 . . . . . . . . . . . . . . . . . 5 Allies Melted 4 | . . . . . . . . . . . . . . . . . . 1 1 . . 2 Field Lobotomies 5 | . . . . . . . . . . . . . . . . . . . . . . 5 Intel | -11 -10 -10 -10 -9 -8 -8 -8 -8 -7 -7 -7 -7 -6 -6 -5 -5 -4 -4 -3 -2 -2 -1 ------- Run | Yrd Mat Min Exi Min Mat Gar Mat Gar Fac Gar Fac Gar Fac Gar Fac Gar Fac Gar Res Res Gar Acc Robot Analysis Total 1 | . . . . 1 . . . . . . . . . . . . . . . . . . Derelict Logs Recovered 2 | . . 1 . 1 . . . . . . . . . . . . . . . . . . Drone Launches 10 | . . . . . . . . . . . . . . . . . . . . . . 10 Drone Recoveries 1 | . . . . . . . . . . . . . . . . . . . . . . 1 Exploration | -11 -10 -10 -10 -9 -8 -8 -8 -8 -7 -7 -7 -7 -6 -6 -5 -5 -4 -4 -3 -2 -2 -1 ------------- Run | Yrd Mat Min Exi Min Mat Gar Mat Gar Fac Gar Fac Gar Fac Gar Fac Gar Fac Gar Res Res Gar Acc Turns Passed 24249 | 5 42 741 272 467 639 1254 557 720 826 1907 1154 2270 813 1437 989 427 105 994 1651 1346 1365 4268 Spaces Moved 11825 | 5 34 580 225 151 284 793 269 356 353 687 447 760 305 452 340 155 42 340 556 572 666 3453 Core 17 | . . . . . . . . . . . . . . 17 . . . . . . . . Treads 8583 | . . . . 108 284 793 269 356 353 687 447 760 305 435 340 155 42 340 556 572 666 1115 Legs 887 | 5 34 580 225 43 . . . . . . . . . . . . . . . . . . Wheels . | . . . . . . . . . . . . . . . . . . . . . . . Hover . | . . . . . . . . . . . . . . . . . . . . . . . Flight 2338 | . . . . . . . . . . . . . . . . . . . . . . 2338 Fastest Speed 24 | 120 120 120 120 120 145 145 145 145 163 240 160 240 240 50 250 250 250 243 158 152 161 24 Average Speed 162 | 120 120 120 120 148 154 145 145 155 167 241 238 268 240 253 250 250 250 258 206 164 167 79 Slowest Speed 1800 | 120 120 120 120 160 160 145 145 166 243 320 240 320 240 1800 250 250 250 570 270 176 249 340 Overloaded Moves . | . . . . . . . . . . . . . . . . . . . . . . . Propulsion Burnouts . | . . . . . . . . . . . . . . . . . . . . . . . Robots Hopped 7 | . . . . . . . . . . . . . . . . . . . . . . 7 Cave-ins Triggered . | . . . . . . . . . . . . . . . . . . . . . . . Exploration Rate (%) 40 | 2 13 95 61 38 25 81 33 52 13 78 12 80 12 51 12 30 1 44 13 19 92 64 Regions Visited 22 Branch Regions 3 Pre-discovered Areas . | . . . . . . . . . . . . . . . . . . . . . . . Known Exits Taken 8 | . . . . . 1 . 1 . 1 . 1 . 1 . 1 . 1 . . 1 . . Unknown Exits Taken 6 | 1 1 1 1 1 . . . . . . . . . . . . . . 1 . . . Scrap Searched 2 | . . 1 . 1 . . . . . . . . . . . . . . . . . . Spaces Dug 42 | . . . . . . . . . 4 . 2 2 . . 2 . . . 4 10 . 18 Terrain Destroyed 485 | . . . . 21 16 . 15 1 28 63 4 21 42 7 33 1 . 10 34 24 17 148 Melee . | . . . . . . . . . . . . . . . . . . . . . . . Projectile 245 | . . . . . 16 . 15 1 20 10 4 21 11 7 13 1 . 10 34 24 17 41 AOE 240 | . . . . 21 . . . . 8 53 . . 31 . 20 . . . . . . 107 Terrain Rammed . | . . . . . . . . . . . . . . . . . . . . . . . Walls Destroyed . | . . . . . . . . . . . . . . . . . . . . . . . Machines Disabled . | . . . . . . . . . . . . . . . . . . . . . . . Actions | -11 -10 -10 -10 -9 -8 -8 -8 -8 -7 -7 -7 -7 -6 -6 -5 -5 -4 -4 -3 -2 -2 -1 --------- Run | Yrd Mat Min Exi Min Mat Gar Mat Gar Fac Gar Fac Gar Fac Gar Fac Gar Fac Gar Res Res Gar Acc Total 16051 | 4 34 597 228 339 399 885 368 441 473 803 522 900 354 703 471 196 42 450 1056 970 921 4895 Wait 2148 | . . . . 127 43 12 47 21 34 19 17 62 18 121 37 33 . 31 253 182 61 1030 Move 11797 | 4 33 579 224 151 284 792 269 355 353 686 447 759 305 451 340 154 42 339 555 572 665 3438 Hop 7 | . . . . . . . . . . . . . . . . . . . . . . 7 Pick Up 125 | . . . 1 5 6 3 3 6 5 9 8 2 2 21 3 1 . 2 10 12 13 13 Fast Attach 144 | . 1 1 . 4 4 2 4 6 6 5 7 4 6 10 3 1 . 3 14 18 7 38 Attach 118 | . . . 1 3 3 . 1 4 3 3 4 5 1 13 4 . . 6 7 15 10 35 Detach 59 | . . . 1 1 . . 1 1 1 . 1 2 1 7 2 . . 1 3 7 7 23 Swap 60 | . . . . 2 6 1 5 2 7 7 7 1 . . 1 . . . 2 2 . 17 Drop 164 | . . 1 1 6 9 4 4 4 6 3 16 5 1 10 3 1 . . 11 9 14 56 Fire 1347 | . . 16 . 39 44 10 33 42 57 67 15 58 20 70 78 6 . 68 200 153 144 227 Melee . | . . . . . . . . . . . . . . . . . . . . . . . Ram . | . . . . . . . . . . . . . . . . . . . . . . . Kick . | . . . . . . . . . . . . . . . . . . . . . . . Crush 4 | . . . . 1 . . 1 . 1 . . . . . . . . . 1 . . . Escape Stasis 14 | . . . . . . . . . . 4 . 2 . . . . . . . . . 8 Rewire 61 | . . . . . . 61 . . . . . . . . . . . . . . . . Trap . | . . . . . . . . . . . . . . . . . . . . . . . Miscellaneous 3 | . . . . . . . . . . . . . . . . . . . . . . 3 Route ------- -11/Scrapyard -10/Materials -10/Mines (discovered 3 exits: [*Mat x2] / *Exi) -10/Exiles -9/Mines -8/Materials (discovered 2 exits: *Fac / Gar) -8/Garrison -8/Materials -8/Garrison (discovered 3 exits: *Fac x3) -7/Factory (discovered 3 exits: *Fac / Sto / Gar) -7/Garrison (discovered 3 exits: *Fac x3) -7/Factory -7/Garrison (discovered 2 exits: *Fac x2) -6/Factory (discovered 2 exits: *Fac / Gar) -6/Garrison -5/Factory -5/Garrison -4/Factory -4/Garrison (discovered 3 exits: *Res x3) -3/Research -2/Research -2/Garrison (discovered 3 exits: *Acc x3) -1/Access (discovered 2 exits: [*Sur] / [*Com]) To Epsilon Eridani History --------- Turn | Location | Event 1 | -11/Scrapyard | Discovered new exit (range 3) 6 | -11/Scrapyard | Entered Materials 36 | -10/Materials | Discovered new exit (range 10) 48 | -10/Materials | Entered Mines 58 | -10/Mines | Assisted by bots powering up and referring to "LRC-V3" 73 | -10/Mines | Met a Derelict bent on vengeance 316 | -10/Mines | Build established: Mutant 331 | -10/Mines | Discovered new exit (range 8) 580 | -10/Mines | Learned Materials terminal intel 631 | -10/Mines | Discovered new exit (range 8) 783 | -10/Mines | Deemed a non-threat by the Exiles lab entrance 783 | -10/Mines | Discovered new exit (range 5) 789 | -10/Mines | Entered Exiles 789 | -10/Exiles | Accompanied by 3 allies 819 | -10/Exiles | Met 8R-AWN 841 | -10/Exiles | Met EX-HEX 873 | -10/Exiles | Met EX-BIN 890 | -10/Exiles | Aligned with FarCom system 891 | -10/Exiles | Given EX-Vault access code 920 | -10/Exiles | Opened EX-Vault 927 | -10/Exiles | Found Field Lobotomy Kit 951 | -10/Exiles | Warned to stay clear of 0b10 Research branches 987 | -10/Exiles | Met EX-DEC 1045 | -10/Exiles | Discovered new exit (range 14) 1061 | -10/Exiles | Left Exiles lab with Field Lobotomy Kit 1061 | -10/Exiles | Entered Mines 1061 | -9/Mines | Accompanied by 3 allies 1064 | -9/Mines | Assembled infested the area 1069 | -9/Mines | Assisted by a Guerilla fighting off Assembled 1154 | -9/Mines | Lost 4 allies 1302 | -9/Mines | Core integrity fell below 50% 1434 | -9/Mines | Met a Derelict shopkeep closing up shop 1499 | -9/Mines | Discovered new exit (range 16) 1526 | -9/Mines | Central database locked down 1528 | -9/Mines | Entered Materials 1528 | -8/Materials | Evolved 4 slots: Propulsion x2, Utility x2 1529 | -8/Materials | Loaded intel: 12 terminal locations 2003 | -8/Materials | Discovered new exit (range 13) 2167 | -8/Materials | Identified exit to Garrison 2167 | -8/Materials | Entered Garrison 2167 | -8/Garrison | Discovered recently destroyed garrison 2180 | -8/Garrison | Rescued a captive Derelict 2185 | -8/Garrison | Rescued a captive Derelict 2191 | -8/Garrison | Installed Relay Interface Framework 2211 | -8/Garrison | Garrison Relay disabled 2882 | -8/Garrison | Discovered new exit (range 8) 3051 | -8/Garrison | Build established: Commander-Mutant 3092 | -8/Garrison | Garrison Relay disabled 3094 | -8/Garrison | Garrison Relay disabled 3096 | -8/Garrison | Garrison Relay disabled 3100 | -8/Garrison | Garrison Relay disabled 3421 | -8/Garrison | Entered Materials 3421 | -8/Materials | Accompanied by 8 allies 3855 | -8/Materials | Garrison activated, responded to threat 3954 | -8/Materials | Lost 3 allies 3963 | -8/Materials | Garrison activated, responded to threat 3978 | -8/Materials | Identified exit to Garrison 3978 | -8/Materials | Entered Garrison 4005 | -8/Garrison | Discovered new exit (range 43) 4005 | -8/Garrison | Discovered new exit (range 64) 4005 | -8/Garrison | Discovered new exit (range 41) 4096 | -8/Garrison | Triggered checkpoint 4099 | -8/Garrison | Triggered checkpoint 4176 | -8/Garrison | Lost 4 parts (3u1w) 4304 | -8/Garrison | Triggered checkpoint 4471 | -8/Garrison | Expanded RIF knowledge: Structural Interface 4684 | -8/Garrison | Triggered checkpoint 4698 | -8/Garrison | Entered Factory 4698 | -7/Factory | Evolved 2 slots: Utility x2 4699 | -7/Factory | Identified exit to Storage 4859 | -7/Factory | Build established: Mutant 5098 | -7/Factory | First assault squad dispatched 5132 | -7/Factory | Discovered new exit (range 9) 5524 | -7/Factory | Identified exit to Garrison 5524 | -7/Factory | Entered Garrison 5718 | -7/Garrison | Triggered checkpoint 5718 | -7/Garrison | Garrison Relay disabled 5881 | -7/Garrison | Triggered checkpoint 6047 | -7/Garrison | Discovered new exit (range 14) 6497 | -7/Garrison | Discovered new exit (range 78) 6497 | -7/Garrison | Discovered new exit (range 65) 6497 | -7/Garrison | Discovered new exit (range 16) 6535 | -7/Garrison | Core integrity fell below 50% 6878 | -7/Garrison | Triggered checkpoint 6932 | -7/Garrison | Build established: Bothacker-Mutant 6963 | -7/Garrison | Triggered checkpoint 6992 | -7/Garrison | Destroyed 10 combat bots 7088 | -7/Garrison | Triggered checkpoint 7371 | -7/Garrison | Expanded RIF knowledge: Zone Cloak 7431 | -7/Garrison | Entered Factory 7726 | -7/Factory | Fabricated T-07 Excavator? 8547 | -7/Factory | Found Prototype Launcher 8547 | -7/Factory | Identified Rocket Array 8554 | -7/Factory | Found Rocket Array 8585 | -7/Factory | Identified exit to Garrison 8585 | -7/Factory | Entered Garrison 8585 | -7/Garrison | Accompanied by 1 ally 8709 | -7/Garrison | Triggered checkpoint 9137 | -7/Garrison | Triggered checkpoint 9343 | -7/Garrison | Discovered new exit (range 10) 9825 | -7/Garrison | Triggered checkpoint 9948 | -7/Garrison | Lost 3 parts (2n1u) 10327 | -7/Garrison | Triggered checkpoint 10404 | -7/Garrison | Found embedded Infiltrators 10589 | -7/Garrison | Spotted B-75 Beast 10607 | -7/Garrison | Allies destroyed B-75 Beast 10683 | -7/Garrison | Expanded RIF knowledge: Alert ID Control 10808 | -7/Garrison | Discovered new exit (range 15) 10855 | -7/Garrison | Entered Factory 10855 | -6/Factory | Accompanied by 1 ally 10855 | -6/Factory | Evolved 2 slots: Utility x2 10971 | -6/Factory | Allied Derelicts emerged from ambush trap array 11453 | -6/Factory | Discovered new exit (range 6) 11530 | -6/Factory | Garrison activated, responded to threat 11668 | -6/Factory | Identified exit to Garrison 11668 | -6/Factory | Entered Garrison 11757 | -6/Garrison | Learned Factory security intel 11960 | -6/Garrison | Triggered checkpoint 12076 | -6/Garrison | Spotted B-90 Cyclops 12122 | -6/Garrison | Rewired B-90 Cyclops 12140 | -6/Garrison | Core integrity fell below 50% 12145 | -6/Garrison | Rewired B-90 Cyclops 12150 | -6/Garrison | Allies destroyed B-90 Cyclops 12168 | -6/Garrison | Found Hvy. Reflective Plating 12171 | -6/Garrison | Lost 4 parts (2n2u) 12338 | -6/Garrison | Found Quantum Capacitor 12418 | -6/Garrison | Found Quantum Capacitor 12624 | -6/Garrison | Triggered checkpoint 12731 | -6/Garrison | Spotted B-75 Beast 12731 | -6/Garrison | Spotted B-75 Beast 12879 | -6/Garrison | Discovered new exit (range 10) 12962 | -6/Garrison | Triggered checkpoint 12989 | -6/Garrison | Expanded RIF knowledge: Patrol Navigation 13012 | -6/Garrison | Garrison Relay disabled 13105 | -6/Garrison | Entered Factory 13105 | -5/Factory | Accompanied by 1 ally 13105 | -5/Factory | Evolved 2 slots: Power x1, Utility x1 13405 | -5/Factory | First assault squad dispatched 14094 | -5/Factory | Identified exit to Garrison 14094 | -5/Factory | Entered Garrison 14265 | -5/Garrison | Garrison Relay disabled 14388 | -5/Garrison | Triggered checkpoint 14429 | -5/Garrison | Expanded RIF knowledge: Zone Cloak 14486 | -5/Garrison | Discovered new exit (range 11) 14521 | -5/Garrison | Entered Factory 14521 | -4/Factory | Evolved 2 slots: Utility x2 14561 | -4/Factory | Build established: Botlord-Mutant 14626 | -4/Factory | Identified exit to Garrison 14626 | -4/Factory | Entered Garrison 14684 | -4/Garrison | Discovered new exit (range 82) 14684 | -4/Garrison | Discovered new exit (range 90) 14684 | -4/Garrison | Discovered new exit (range 47) 14744 | -4/Garrison | Triggered checkpoint 14784 | -4/Garrison | Spotted Striker 14967 | -4/Garrison | Spotted B-86 Titan 14967 | -4/Garrison | Triggered checkpoint 15055 | -4/Garrison | Lost 7 allies 15063 | -4/Garrison | Lost 4 parts (2n2w) 15232 | -4/Garrison | Expanded RIF knowledge: Program Shield 15380 | -4/Garrison | Triggered checkpoint 15532 | -4/Garrison | Garrison Relay disabled 15620 | -4/Garrison | Entered Research 15620 | -3/Research | Evolved 2 slots: Propulsion x2 16416 | -3/Research | Spotted B-86 Titan 16454 | -3/Research | Destroyed B-86 Titan 16476 | -3/Research | Lost 3 parts (1p2u) 16995 | -3/Research | Discovered new exit (range 14) 17021 | -3/Research | Found Quantum Capacitor 17025 | -3/Research | Found Quantum Capacitor 17244 | -3/Research | Cargo convoy interrupted 17266 | -3/Research | Spotted Executioner 17271 | -3/Research | Entered another Research area 17271 | -2/Research | Evolved 2 slots: Utility x1, Weapon x1 17299 | -2/Research | Lost 4 parts (1n3u) 17797 | -2/Research | P-80 Master assimilated allied Enforcer 9a 17813 | -2/Research | Garrison activated, responded to threat 18021 | -2/Research | Build established: Bothacker-Mutant 18021 | -2/Research | First assault squad dispatched 18121 | -2/Research | Lost 4 parts (4u) 18245 | -2/Research | Lost 3 parts (3n) 18617 | -2/Research | Identified exit to Garrison 18617 | -2/Research | Entered Garrison 18697 | -2/Garrison | Triggered checkpoint 18748 | -2/Garrison | Garrison Relay disabled 18785 | -2/Garrison | Triggered checkpoint 18823 | -2/Garrison | Garrison Relay disabled 19024 | -2/Garrison | Triggered checkpoint 19053 | -2/Garrison | Build established: Botlord-Mutant 19062 | -2/Garrison | Spotted B-90 Cyclops 19067 | -2/Garrison | Triggered checkpoint 19168 | -2/Garrison | Garrison Relay disabled 19185 | -2/Garrison | Triggered checkpoint 19200 | -2/Garrison | Found embedded Infiltrators 19257 | -2/Garrison | Discovered new exit (range 2) 19296 | -2/Garrison | Rescued a captive Derelict 19297 | -2/Garrison | Rescued a captive Derelict 19423 | -2/Garrison | Triggered checkpoint 19453 | -2/Garrison | Triggered checkpoint 19475 | -2/Garrison | Garrison Relay disabled 19565 | -2/Garrison | Triggered checkpoint 19615 | -2/Garrison | Discovered new exit (range 5) 19649 | -2/Garrison | Triggered checkpoint 19670 | -2/Garrison | Garrison Relay disabled 19922 | -2/Garrison | Expanded RIF knowledge: Autooverride 19937 | -2/Garrison | Discovered new exit (range 14) 19982 | -2/Garrison | Entered Access 19982 | -1/Access | Accompanied by 12 allies 19982 | -1/Access | Evolved 2 slots: Utility x2 19994 | -1/Access | Garrison activated, responded to threat 20307 | -1/Access | Found Quantum Capacitor 20482 | -1/Access | First assault squad dispatched 21075 | -1/Access | Found Quantum Capacitor 21296 | -1/Access | Spotted B-99 Colossus 21302 | -1/Access | Assimilated B-99 Colossus with FLK Orb 21307 | -1/Access | Spotted B-99 Colossus 21308 | -1/Access | Assimilated B-99 Colossus with FLK Orb 21352 | -1/Access | Discovered new exit (range 4) 21883 | -1/Access | Spotted B-99 Colossus 21886 | -1/Access | Assimilated B-99 Colossus with FLK Orb 22030 | -1/Access | System corruption reached 10% 22057 | -1/Access | High security lockdown imminent 22137 | -1/Access | High security lockdown engaged 22143 | -1/Access | Spotted B-99 Colossus 22145 | -1/Access | Assimilated B-99 Colossus with FLK Orb 22219 | -1/Access | Spotted Striker 22220 | -1/Access | Spotted Striker 22233 | -1/Access | Allies destroyed Striker 22277 | -1/Access | Scanned by Researcher 22278 | -1/Access | Spotted Investigator 22278 | -1/Access | Allies destroyed Investigator 22280 | -1/Access | Garrison activated, responded to threat 22307 | -1/Access | Destroyed 7 combat bots 22372 | -1/Access | Lost 6 allies 22408 | -1/Access | Assimilated Executioner with FLK Orb 22408 | -1/Access | Spotted Executioner 22421 | -1/Access | Destroyed Executioner 22457 | -1/Access | Spotted Striker 22470 | -1/Access | Destroyed Striker 22490 | -1/Access | Lost 4 allies 22491 | -1/Access | Destroyed 15 combat bots 22516 | -1/Access | Lost 4 parts (1n3w) 22578 | -1/Access | Sterilization system engaged 22878 | -1/Access | Ambient heat levels rising (+10) 22999 | -1/Access | Build established: Scavenger-Sprinter 23028 | -1/Access | Ambient heat levels rising (+10) 23178 | -1/Access | Ambient heat levels rising (+10) 23328 | -1/Access | Ambient heat levels rising (+10) 23478 | -1/Access | Ambient heat levels rising (+10) 23497 | -1/Access | Spotted B-99 Colossus 23628 | -1/Access | Ambient heat levels rising (+10) 23778 | -1/Access | Ambient heat levels rising (+10) 23858 | -1/Access | Spotted B-99 Colossus 23928 | -1/Access | Ambient heat levels rising (+10) 24078 | -1/Access | Ambient heat levels rising (+10) 24228 | -1/Access | Ambient heat levels rising (+10) 24244 | -1/Access | Discovered new exit (range 4) 24250 | *** | Escaped! Last Messages --------------- 24029_ 1TGV5K3Q XCSLQTXCN>A0TI 0 X&3ZWSYKN VQ 24039_ RIF reveals location of hidden door. 24044_ System corrupted: Matter fused (-8). 24047_ Acquired 29 matter. 24066_ System corrupted: Matter fused (-7). 24078_ ALERT: Ambient heat levels +10. 24081_ System corrupted: Heat flow error (+264). 24099_ System corrupted: Energy discharge (-85). 24114_ System corrupted: Matter fused (-5). 24132_ NBJLJL/XKAZJYWTZGZXTHGA<4#8FROTC,BWAM HD 24168_ WY1%ZJPDM9YX<1|QMN3E 9 24168_ Terminal disabled. Terminal melts. 24186_ I< BLBGI L3E3W1KYOSDD:T,5PU,9YKTQL 24228_ ALERT: Ambient heat levels +10. 24231_ Sealed Heavy Doors breached. 24244_ Main Access Shell breached. 24244_ EXIT=FOUND 24247_ System corrupted: Energy discharge (-62). [Achievement: 50k Club] Map ----- +----------------------------------------------------+ | ?# # # = # #?? | | ?# %# # # #?? | | ?# ## #### % # #?? | | ?# ^^ ! # #?? | | ?# ##############?? | | ?# #??????????????? | | ?# #??????????????? | | ?# ############ ^ #??????????????? | | ?# #??????????# ^ #??????????????? | | ?# #???????#### ""#### #??########????? | | ?# ] #???????# #?# #??# [ #??? | | ?# #######?# #?# #??# #??? | | ?# # #?# #?# #??# "" = #??? | | ?# # #?# #?# #### "" #??? | | ?# # #?# % % #?# + "Y #??? | | ?# # #?# ! #?# # "" #??? | | ?# # #?# #?# # "" #??? | | ?# # #?#""""" """"#?# + #??? | | ?# # #??????" "?????###### #??? | | ## # #??????" "??????????##########??? | | # #?#""""" """"#??????????????????? | | % + #?# #??????????????????? | | ####### # #?# """ "" #??????????????????? | | ??????## ## #????" "? #??????????????##??? | | ?##????# ###+####????" "" "??#????####???###%###? | | ? ???# # #????" "@ "???????# ?? #? | | ? ???# # #????" "???????# ? #? | | ? ??# # #????""""""???????# "" #? | | ?""""??# # #?????????????????# "" " #? | | ?"""" ?# # #?????????????????# "" " #? | | ?"""" ?+ # #?""""""""""""????# "" #? | | """"" # + #?#" #????# "" #? | | """"" # # #?#" #????# #? | | + # #?#"" #????# #? | | # # #?#T #????# ## | | # # #?#" #????# + | | ######## ########?#" #????# # | | ??????# #########"" ############+##+### | | ??????# | | ??????# | | ??????# ######################################+ | | ??????######???????????????????????????????# | | ???????????????????????????????????????????# | | ???????????????????????????????????????????# | | ???????????????????????????????????????????#! | | ???????????????????????????????????????????# | | ???????????????????????????????????????????# | | ???????????????????????????????????????????# | | ???????????????????????????????????????????# | | ???????????????????????????????????????????####### | +----------------------------------------------------+ Best States ------------- Heat Dissipation 349 Coolant Potential 180 Energy Generation 45 Energy Capacity 675 Matter Stores 300 Matter Capacity 300 Sight Range 22 Terrain Scan Density 10 Additional Mass Support 9 Base Temperature (-) 200 Corruption Block 20 Armor Coverage 1200 Resistance: KI 25 Resistance: TH 25 Resistance: EM 20 Utility Shielding 66 Phase Shifting 10 Evasion (%) 77 Target Analysis 12 Armor Integrity Analysis 30 Recoil Reduction 6 Matter Filtering 50 Kinecelleration 40 Offensive Hacking 12 Defensive Hacking 10 Relay Coupler Types 4 Relay Coupler Value 102 Item Schematics ----------------- None Robot Schematics ------------------ None Fabricated ------------ T-07 Excavator | x2 | -7/Factory | Preloaded Alien Tech Used ----------------- None Achievements -------------- 50k Club Challenges ------------ None Game ------ Seed ShockDecoderLance Manual? 0 Play Time 03:59:50 Cumulative 123.0 hours Start 2024.11.20 @ 01:26:55 End 2024.11.20 @ 05:56:24 Sessions 1 Manual Loads 0 Difficulty Rogue Special Mode None Game No. 100 Rogue 81 Adventurer 16 Explorer 3 Win Type 0 Total 9 Types 7/0/1/1/0/0/0/0/0 Lore% 26 Gallery% 63 Achievement% 58 Wizard Run 0 Options --------- Layout 2 ASCII 0 Keyboard 0 Movement Numpad Keybinds 1 Fullscreen 1 Font 24/Terminus Map View 50x44 Zoom Use 0% Tactical HUD 1 Map Filters NONE Filters NONE Steam 1 RUN: 29eb9cf6-3b94-4326-8fca-731ab29fc49b